Cogmind - Beta 17.1 @@@ ROGUE MODE // 2026.09.05 @ 17:25:22 Player: Zaje Result: Self-destructed Performance ------------- Evolutions (1) 500 Regions Visited (4) 800 Robots Destroyed (36) 180 Value Destroyed (604) 604 Prototype IDs (2) 40 Alien Tech Used (0) 0 Bonus (600) 600 TOTAL SCORE: 2724 Bonus ------- Met Imprinter 300 Was Imprinted 300 Cogmind --------- Core Integrity 281/400 Matter 220/300 Energy 123/125 System Corruption 0% Temperature Cool (6) Movement Flying (35) Location -7/Zion Parts ------- > --- POWER (1) -------- Light Ion Engine > --- PROPULSION (3) --- VTOL Module VTOL Module Makeshift Flight Unit > --- UTILITY (3) ------ Visual Processing Unit Hacking Suite > --- WEAPON (2) ------- Bore Cannon Grenade Launcher > --- INVENTORY (5) ---- Ion Engine Light Armor Plating Hacking Drone Bay (1/1) RU-N14's Throwing Claymores (4) Makeshift Sword Peak State ------------ > --- POWER ------------ Ion Engine > --- PROPULSION ------- Armored Wheel Armored Wheel Armored Wheel > --- UTILITY ---------- Large Storage Unit Hacking Suite Hacking Drone Bay > --- WEAPON ----------- Heavy Assault Rifle RU-N14's Throwing Claymores > --- INVENTORY -------- Light Ion Engine Armored Wheel Armored Wheel VTOL Module VTOL Module Visual Processing Unit Light Armor Plating Shield Generator Heavy EM Pulse Gun EM Shotgun Heavy Assault Rifle Heavy Assault Rifle Bore Cannon Grenade Launcher Grenade Launcher [Rating: 31] Favorites ----------- Power Ion Engine Engine Ion Engine Propulsion Armored Wheel Treads Light Treads Wheel Armored Wheel Flight Unit VTOL Module Utility Hacking Suite Device Hacking Drone Bay Storage Small Storage Unit Processor Salvage Targeting Computer Hackware Hacking Suite Protection Light Armor Plating Weapon Heavy Assault Rifle Ballistic Gun Heavy Assault Rifle Ballistic Cannon Bore Cannon Launcher Grenade Launcher Special Weapon RU-N14's Throwing Claymores Build | -11 -10 -9 -9 -7 ------- Run | Yrd Mat Mat Min Zio Slots Evolved 2 | . . 2 . . Power . | . . . . . Propulsion 1 | . . 1 . . Utility 1 | . . 1 . . Weapon . | . . . . . Parts Attached 31 | 6 3 11 2 9 Power 3 | 1 . . 1 1 Engine 3 | 1 . . 1 1 Core . | . . . . . Reactor . | . . . . . Propulsion 9 | 2 . 4 . 3 Treads 3 | 2 . 1 . . Leg . | . . . . . Wheel 3 | . . 3 . . Hover . | . . . . . Flight 3 | . . . . 3 Utility 8 | 1 2 3 . 2 Device 1 | . . . . 1 Storage 2 | 1 . 1 . . Processor 2 | . 1 . . 1 Hackware 1 | . 1 . . . Protection 2 | . . 2 . . Artifact . | . . . . . Weapon 11 | 2 1 4 1 3 Energy Gun . | . . . . . Energy Cannon . | . . . . . Ballistic Gun 7 | 2 1 4 . . Ballistic Cannon 1 | . . . . 1 Launcher 2 | . . . 1 1 Special Weapon 1 | . . . . 1 Impact Weapon . | . . . . . Slashing Weapon . | . . . . . Piercing Weapon . | . . . . . Special Melee Weapon . | . . . . . Unidentified Prototypes 2 | . . . . 2 Parts Lost . | . . . . . Power . | . . . . . Propulsion . | . . . . . Utility . | . . . . . Weapon . | . . . . . Highest Loss Streak . | . . . . . To Critical Strikes . | . . . . . Average Backups 9 | 2 7 8 14 11 Power 1 | . 1 1 1 1 Propulsion 2 | 1 1 2 5 3 Utility 2 | . 2 2 2 1 Weapon 3 | . 2 2 5 5 Tool/Special . | . . . . . Unused Backups 14 | . 4 2 1 7 Power . | . . . . . Propulsion 6 | . 2 1 . 3 Utility 3 | . 1 . 1 1 Weapon 5 | . 1 1 . 3 Tool/Special . | . . . . . Average Slot Usage (%) 96 | . 99 99 100 92 Engine 11 | . 14 11 11 11 Treads 10 | . 28 11 . . Wheel 16 | . . 21 33 22 Flight 4 | . . . . 10 Storage 10 | . 14 11 11 7 Processor 3 | . 10 . . 3 Hackware 8 | . 2 11 11 11 Protection 6 | . . 10 11 6 Ballistic Gun 18 | . 28 22 17 9 Ballistic Cannon 1 | . . . . 3 Special Weapon 2 | . . . . 5 Peak Build Rating 31 | 6 10 18 18 31 Average Rating 16 | 5 9 15 17 22 On Entrance 10 | . 6 10 18 18 Avg Prop Armor Cover (%) . | . . . . . Naked Turns . | . . . . . Heaviest Build 39 | 13 13 34 34 39 Greatest Support 60 | 40 40 60 36 36 Greatest Overweight (x) 5 | . . 5 . 2 Average Overweight (x) . | . . . . . Largest Inventory Capacity 15 | 8 8 15 15 15 Average Capacity 10 | 7 8 9 15 11 Most Carried 15 | 4 8 15 15 15 Average Carried 9 | 3 7 8 14 11 Final Capacity 15 | 8 8 15 15 5 Final Carried 15 | 4 7 15 14 5 Class Distribution -------------------- 85% | Mutant 14% | Scavenger-Mutant Dominant Class ---------------- Mutant | -10/Materials Mutant | -9/Materials Scavenger-Mutant | -9/Mines Mutant | -7/Zion Resources | -11 -10 -9 -9 -7 ----------- Run | Yrd Mat Mat Min Zio Matter Collected 929 | 286 122 431 80 10 Remotely . | . . . . . Salvage Created 926 | 119 285 484 38 . Parts 82 | 4 28 40 10 . Haulers Intercepted 1 | . . 1 . . Recyclers Shooed 1 | . . 1 . . Parts Field Recycled . | . . . . . Retrieved Matter . | . . . . . Parts Self-Destructed . | . . . . . Prevented . | . . . . . Parts Restored . | . . . . . Kills | -11 -10 -9 -9 -7 ------- Run | Yrd Mat Mat Min Zio Combat Hostiles Destroyed 23 | . 9 10 4 . Guns 22 | . 9 10 3 . AOE 1 | . . . 1 . Classes Destroyed 9 | 2 4 2 1 . Worker 4 | 2 . 2 . . Tunneler 1 | . . . 1 . Hauler 1 | . . 1 . . Recycler 1 | 1 . . . . Operator 1 | . 1 . . . Watcher 5 | . 1 4 . . Swarmer 14 | . 6 4 4 . Grunt 6 | . 3 3 . . Sentry 3 | . . 3 . . Best Kill Streak 7 | 3 6 7 6 . Combat Bots Only 6 | . 6 3 4 . Max Kills in Single Turn 3 | 1 1 1 3 . Gunslinging . | . . . . . Exploded 1 | . . . 1 . Melee . | . . . . . Uniques/NPCs Destroyed . | . . . . . Combat | -11 -10 -9 -9 -7 -------- Run | Yrd Mat Mat Min Zio Hostile Shots Fired 94 | . 40 39 15 . Missed 24 | . 10 10 4 . Hits 70 | . 30 29 11 . Projectile 70 | . 30 29 11 . Critical Strikes 1 | . . 1 . . Damage Taken 702 | . 272 342 88 . Core 131 | . 12 99 20 . Absorbed by Shields . | . . . . . Core Remaining (%) 97 | 100 95 . . . Volleys Fired 89 | 7 25 49 8 . Largest 2 | 2 2 2 2 . Hottest 53 | 40 40 46 53 . Shots Fired 172 | 14 50 98 10 . Gun 170 | 14 50 98 8 . Cannon . | . . . . . Launcher 2 | . . . 2 . Special . | . . . . . Kinetic 170 | 14 50 98 8 . Thermal . | . . . . . Explosive 2 | . . . 2 . Electromagnetic . | . . . . . Robot Hit Streak 12 | 5 12 4 5 . Robot Miss Streak 5 | 1 3 4 5 . Penetration Max . | . . . . . Secondary Targets 4 | . 4 . . . Max Gunslinging Chain 1 | . 1 . . . Shots Hit Robots 101 | 10 36 52 3 . Core Hits 50 | 5 17 23 5 . Critical Kills . | . . . . . Critical Parts Destroyed 1 | . . 1 . . Critical Strikes 1 | . . 1 . . Destroy 1 | . . 1 . . Melee Attacks . | . . . . . Impact . | . . . . . Slashing . | . . . . . Piercing . | . . . . . Sneak Attacks . | . . . . . Combat Hostiles . | . . . . . Follow-up Attacks . | . . . . . Damage Inflicted 1450 | 113 387 767 183 . Guns 1306 | 113 387 762 44 . Cannons . | . . . . . Explosions 139 | . . . 139 . Melee . | . . . . . Ramming 5 | . . 5 . . Kinetic 1306 | 113 387 762 44 . Thermal . | . . . . . Explosive 139 | . . . 139 . Electromagnetic . | . . . . . Impact . | . . . . . Slashing . | . . . . . Piercing . | . . . . . Highest Corruption . | . . . . . Average Corruption . | . . . . . Corruption Purged . | . . . . . Corruption Blocked . | . . . . . Overload Shots . | . . . . . Overflow Damage 3 | . . . 3 . Projectiles . | . . . . . Explosions 3 | . . . 3 . Melee . | . . . . . Knockbacks . | . . . . . Impact . | . . . . . Kinetic . | . . . . . Secondary . | . . . . . Self-Inflicted Damage 2 | . . 2 . . Shots . | . . . . . Rammed 2 | 1 . 1 . . Targets Rammed 2 | 1 . 1 . . Kicked . | . . . . . Crushed . | . . . . . Highest Temperature 29 | . 12 29 . . Average Temperature 4 | . 7 3 . . Received Heat Transfer 186 | . 72 114 . . Siege Activations . | . . . . . Martial Activations . | . . . . . Shielding Activations . | . . . . . Robots Disrupted . | . . . . . Combat Hostiles . | . . . . . Robots Corrupted . | . . . . . Combat Hostiles . | . . . . . Parts Fried . | . . . . . Impact Corruptions . | . . . . . Robots Melted . | . . . . . Combat Hostiles . | . . . . . Parts Melted . | . . . . . Heat Transferred . | . . . . . Parts Sabotaged . | . . . . . Parts Stolen . | . . . . . Parts Stripped . | . . . . . Power Chain Reactions . | . . . . . Alert | -11 -10 -9 -9 -7 ------- Run | Yrd Mat Mat Min Zio Maximum Alert Level . | . . . . . Low Security (%) 100 | 100 100 100 100 . Level 1 . | . . . . . Level 2 . | . . . . . Level 3 . | . . . . . Level 4 . | . . . . . Level 5 . | . . . . . High Security . | . . . . . Max Security . | . . . . . Peak Influence 156 | 10 130 156 147 . Initial 42 | . . 9 42 . Average 45 | . 31 54 116 . Influence Increases 681 | 15 249 312 105 . Destroy 0b10 Robot/C 460 | . 180 200 80 . Destroy 0b10 Robot/NC 65 | 15 10 35 5 . Destroy Leader 112 | . 42 60 10 . Successful Hack 17 | . 17 . . . Disable Machine 15 | . . 15 . . Destroy Structure 12 | . . 2 10 . Influence Decreases 681 | 15 227 225 127 87 Entered New Map 167 | . . 13 67 87 Time Decay 514 | 15 227 212 60 . Squads Dispatched 3 | . 2 1 . . Investigation . | . . . . . Extermination . | . . . . . Reinforcement 3 | . 2 1 . . Assault . | . . . . . Garrison . | . . . . . Intercept . | . . . . . Searches Triggered . | . . . . . Construction Impeded . | . . . . . Haulers Reinforced . | . . . . . Active Scanning Responses . | . . . . . Cargo Convoy Interrupts . | . . . . . Stealth | -11 -10 -9 -9 -7 --------- Run | Yrd Mat Mat Min Zio Distress Signals 4 | . . 4 . . Communications Jammed . | . . . . . Distress Signals . | . . . . . Times Spotted 37 | . 13 20 4 . Peak Tracking Total 7 | . 7 4 4 . Tactical Retreats . | . . . . . Traps | -11 -10 -9 -9 -7 ------- Run | Yrd Mat Mat Min Zio Traps Triggered . | . . . . . Indirectly . | . . . . . Trap Hack Attempts . | . . . . . Triggered . | . . . . . Disarmed . | . . . . . Reprogrammed . | . . . . . Reused . | . . . . . Traps Extracted . | . . . . . Installed . | . . . . . Triggered . | . . . . . Machines | -11 -10 -9 -9 -7 ---------- Run | Yrd Mat Mat Min Zio Machines Disabled 2 | . . 2 . . Max in Single Turn 1 | . . 1 . . Machines Repaired . | . . . . . Machines Dismantled . | . . . . . Machines Sabotaged . | . . . . . Overloaded Fab Kills . | . . . . . Hacking | -11 -10 -9 -9 -7 --------- Run | Yrd Mat Mat Min Zio Machines Accessed 8 | . 4 3 . 1 Terminals 7 | . 4 3 . . Fabricators . | . . . . . Repair Stations . | . . . . . Recycling Units . | . . . . . Scanalyzers . | . . . . . Garrison Access . | . . . . . Total Hacks 22 | . 8 6 . 8 Successful 18 | . 6 4 . 8 Failed 4 | . 2 2 . . Catastrophic 1 | . 1 . . . Database Lockouts . | . . . . . Manual 12 | . 6 1 . 5 Terminals 14 | . 8 6 . . Fabricators . | . . . . . Repair Stations . | . . . . . Recycling Units . | . . . . . Scanalyzers . | . . . . . Garrison Access . | . . . . . Terminal Hacks 18 | . 6 4 . 8 Record 3 | . . 3 . . Part Schematic 8 | . . . . 8 Robot Analysis 2 | . 2 . . . Locate Traps 1 | . 1 . . . Transport Status 1 | . 1 . . . Investigation Status 1 | . . 1 . . Hauler Manifests 1 | . 1 . . . Zone Layout 1 | . 1 . . . Fabricator Hacks . | . . . . . Repair Station Hacks . | . . . . . Recycling Unit Hacks . | . . . . . Scanalyzer . | . . . . . Garrison Access Hacks . | . . . . . Unauthorized Hacks . | . . . . . Terminals . | . . . . . Fabricators . | . . . . . Repair Stations . | . . . . . Recycling Units . | . . . . . Scanalyzers . | . . . . . Garrison Access . | . . . . . Data Cores Recovered . | . . . . . Used . | . . . . . Hacking Detections 6 | . 4 2 . . Full Trace Events . | . . . . . Feedback Events . | . . . . . Feedback Blocked . | . . . . . Robot Schematics Acquired 3 | . . . . 3 Robots Built . | . . . . . Authchips . | . . . . . Time . | . . . . . Total Robot Build Rating . | . . . . . Part Schematics Acquired 22 | . . . . 22 Parts Built . | . . . . . Authchips . | . . . . . Time . | . . . . . Total Part Build Rating . | . . . . . Part Studies Acquired . | . . . . . Parts Repaired . | . . . . . Time . | . . . . . Parts Recycled . | . . . . . Recycled Matter . | . . . . . Retrieved Matter . | . . . . . Retrieved Components . | . . . . . Parts Scanalyzed . | . . . . . Part Schematics Acquired . | . . . . . Parts Damaged . | . . . . . Bothacking | -11 -10 -9 -9 -7 ------------ Run | Yrd Mat Mat Min Zio Used RIF Installer . | . . . . . Robots Hacked . | . . . . . Non-combat . | . . . . . Combat . | . . . . . Robot Hacks Applied . | . . . . . Relay Couplers Released . | . . . . . Fabnet Peak Effective % . | . . . . . Robots Rewired . | . . . . . Allies Hacked . | . . . . . Hacks Repelled . | . . . . . Allies | -11 -10 -9 -9 -7 -------- Run | Yrd Mat Mat Min Zio Total Allies 4 | . . . . 4 Largest Group 4 | . . . . 4 Highest-Rated Group 156 | . . . . 156 Highest-Rated Ally 43 | . . . . 43 Total Orders . | . . . . . Ally Attacks . | . . . . . Total Damage . | . . . . . Kills . | . . . . . Allies Corrupted . | . . . . . Allies Melted . | . . . . . Intel | -11 -10 -9 -9 -7 ------- Run | Yrd Mat Mat Min Zio Active Infowar (turns) 336 | . . . . 336 Optics 336 | . . . . 336 Robot Analysis Total 2 | . 2 . . . Derelict Logs Recovered 2 | . . . 1 1 Drone Launches . | . . . . . Drone Recoveries . | . . . . . Exploration | -11 -10 -9 -9 -7 ------------- Run | Yrd Mat Mat Min Zio Turns Passed 2964 | 161 700 809 120 1174 Spaces Moved 2787 | 82 334 518 107 1746 Core 4 | 3 . 1 . . Treads 572 | 79 334 159 . . Legs . | . . . . . Wheels 1245 | . . 358 107 780 Hover . | . . . . . Flight 966 | . . . . 966 Fastest Speed 35 | 50 160 90 90 35 Average Speed 89 | 155 160 111 90 65 Slowest Speed 300 | 160 160 300 90 192 Overloaded Moves . | . . . . . Propulsion Burnouts . | . . . . . Robots Hopped . | . . . . . Potential Cave-ins . | . . . . . Cave-ins Triggered . | . . . . . Exploration Rate (%) 40 | 4 55 34 25 86 Regions Visited 4 Branch Regions 2 Pre-discovered Areas 2 | . . . 1 1 Known Exits Taken . | . . . . . Unknown Exits Taken 4 | 1 1 1 1 . Scrap Searched 4 | . . . 2 2 Spaces Dug . | . . . . . Terrain Destroyed 14 | . . . 14 . Melee . | . . . . . Projectile . | . . . . . AOE 14 | . . . 14 . Terrain Rammed . | . . . . . Walls Destroyed . | . . . . . Machines Disabled . | . . . . . Actions | -11 -10 -9 -9 -7 --------- Run | Yrd Mat Mat Min Zio Total 3111 | 99 456 656 120 1780 Wait 138 | . 82 56 . . Move 2783 | 81 333 517 106 1746 Hop . | . . . . . Pick Up 29 | 4 8 12 1 4 Fast Attach 12 | 6 1 4 . 1 Attach 7 | . . 2 . 5 Detach 6 | . . . . 6 Swap 13 | . 2 5 3 3 Drop 32 | . 5 10 2 15 Fire 89 | 7 25 49 8 . Melee . | . . . . . Ram 1 | . . 1 . . Kick . | . . . . . Crush 1 | 1 . . . . Escape Stasis . | . . . . . Rewire . | . . . . . Trap . | . . . . . Miscellaneous . | . . . . . Route ------- -11/Scrapyard -10/Materials (discovered 2 exits: *Mat x2) -9/Materials (discovered 2 exits: [*Min x2]) -9/Mines -7/Zion History --------- Turn | Location | Event 57 | -11/Scrapyard | Discovered new exit (range 16) 162 | -11/Scrapyard | Entered Materials 302 | -10/Materials | Build established: Mutant 411 | -10/Materials | Discovered new exit (range 12) 805 | -10/Materials | Discovered new exit (range 16) 862 | -10/Materials | Entered another Materials area 862 | -9/Materials | Evolved 2 slots: Propulsion x1, Utility x1 994 | -9/Materials | Discovered new exit (range 6) 1250 | -9/Materials | Discovered new exit (range 14) 1671 | -9/Materials | Entered Mines 1726 | -9/Mines | Learned location of Zion (-7) 1745 | -9/Mines | A weapon hastily lodged in a ceiling crevice suddenly fell to the ground 1765 | -9/Mines | A Derelict revealed a hidden shortcut to a safe place 1791 | -9/Mines | Entered Zion 1999 | -7/Zion | Found Prototype Special Weapon 2008 | -7/Zion | Identified RU-N14's Throwing Claymores 2378 | -7/Zion | Learned location of Armory (-3) 2454 | -7/Zion | Given the Hacking Drone Bay 2457 | -7/Zion | Found Prototype Device 2459 | -7/Zion | Identified Hacking Drone Bay 2563 | -7/Zion | Learned location of 1 exit from Factory 2692 | -7/Zion | Met Imprinter 2705 | -7/Zion | Imprinted 2707 | -7/Zion | Declared Zion's savior 2965 | -7/Zion | Self-destructed Last Messages --------------- live" hack. Unless I'm traveling with someone with serious sensor power, loading that Trojan on a terminal is the best way to navigate without running into any Unaware that won't take kindly to Derelicts wandering the corridors of 0b10. 02853_ Connecting with Deep Containment System... 02867_ Connecting with WAR.Sys... 02884_ PUBLIC SERVICE ANNOUNCEMENT: Quarantine Array scanned 1 system, cleaned 0. 02891_ 97-X6S(z) shifts around the Twisted Machinery. 02907_ Imprinter is transmitting encrypted data deep into the caves. 02931_ QO-O3Q(z) uncovers a bit of Twisted Machinery. 02932_ Connecting with WAR.Sys... 02962_ Acquired Lgt. Armor Plating. Map ----- +----------------------------------------------------+ | ?????????????????????????????????????????????????? | | ?????????????????????????????????????????????????? | | ?????????????????????????????????????????????????? | | ?????????????????????????????????????????????????? | | ?????????????????????????????????????????????????? | | ?????????????????????????????????????????????????? | | ?????????????????????????????????????????????????? | | ?????????????????????????????????????????????????? | | ?????????????????????????????????????????????????? | | ?????????????????????????????????????????????????? | | ?????????????????????????????????????????????????? | | ?????????????????????????????????????????????????? | | ????????????????#####????????????????????????????? | | ???????????????##/!/##???????????????????????????? | | ???????????????# #???????????????????????????? | | ???????????????#! !#???????????????????????????? | | ???????????????##/ ##???????????????????????????# | | ???????????????### #######??####???????????????## | | ???????????????# " """###"""#???????##?####?#" | | ?????????####### " [[ """"#"""####????#"##""###" | | ##???????#"""##""""" """"" """"##???#""##""""" | | "###?????#"""""" = """ """""???##""""" | | """##????#"" ! [ """"?##"" "" | | """"#????#"" =[=[ "#?#""" | | X"#######"" """ ""]== """ ""####"" | | """#""#""" """ "" ! @ # #""""""#"""" """ | | """""""""" """" """ #"""""#""" """ | | """"""#" " # #"""""""#"" """ | | ""#"###"" "" """" """ "" | | """""""""" ""###""""" "" "" | | """""#""" "" ""######"" "" " | | ""####"" """"""""" z""" """""" | | #"#?#"" """""#" """" """" """ "##""" | | ###?#"" "" "" """ """z"""""""""" """""""" | | ????##""""" "" "" """"""##""""" """"##"##" | | ?####"""" """""" "" """"""""""" """#"""""## | | ##"""""" """"" """"" """"""""""" | | #""""X"" """"" | | #"""" """"""" | | ##"" "" "" | | ?###### "" "" """""#"#"#""""" | | ??????##### "" "" """""""""""""""" | | ???###?### "" """""""""""##"???#""""" | | ???#"###""" """""" "#"#"""???#???????##""# | | ??##"""""""" """""" """"#####?????????????##? | | ??#""" """" """""" #""##???????????????????? | | ###"" """ """"" #""#????????????????????? | | ""#"" "" "" #""#????????????????????? | | " "" """#????????????????????? | | " """#????????????????????? | +----------------------------------------------------+ Best States ------------- Heat Dissipation 28 Energy Generation 10 Energy Capacity 250 Matter Stores 300 Matter Capacity 300 Sight Range 18 Terrain Scan Density 10 Armor Coverage 150 Evasion (%) 63 Recoil Reduction 3 Salvage Targeting 1 Offensive Hacking 10 Item Schematics ----------------- Arc Projector | -7/Zion | Archive Adv. Signal Interpreter | -7/Zion | Archive Hvy. Missile Launcher | -7/Zion | Archive Thermal Shield | -7/Zion | Archive Imp. Shield Generator | -7/Zion | Archive Imp. Particle Charger | -7/Zion | Archive Gauss Rifle | -7/Zion | Archive Imp. Component Analysis Suite | -7/Zion | Archive Field Propulsion Drive | -7/Zion | Archive Imp. Cooling System | -7/Zion | Archive Power Sword | -7/Zion | Archive Hvy. Machine Gun | -7/Zion | Archive Weapon Cycler | -7/Zion | Archive Adv. Heat Sink | -7/Zion | Archive Riot Gun | -7/Zion | Free Battle Cannon | -7/Zion | Free Flamer | -7/Zion | Free Barrage Gun | -7/Zion | Free Slug Cannon | -7/Zion | Free Enh. Flamer | -7/Zion | Free Ripper | -7/Zion | Free Tactical Coordination Suite | -7/Zion | Free Robot Schematics ------------------ K-01 Serf | -7/Zion | Archive R-06 Scavenger | -7/Zion | Archive G-47 Trooper | -7/Zion | Archive Fabricated ------------ Nothing Repaired ---------- Nothing Studied --------- None Alien Tech Used ----------------- None Achievements -------------- I Have A Map? Robot Respite Shopping List The One Challenges ------------ None Game ------ Seed PlatingMultitargetingSuite Manual? 0 Play Time 00:52:38 Cumulative 6.0 hours Start 2026.09.03 @ 20:09:00 End 2026.09.05 @ 17:25:22 Sessions 5 Manual Loads 0 Difficulty Rogue Special Mode None Game No. 17 Rogue 17 Adventurer 0 Explorer 0 Win Type - Total 0 Types 0/0/0/0/0/0/0/0/0/0 Lore% 7 Gallery% 10 Achievement% 10 Wizard Run 0 Options --------- Layout 1 ASCII 0 Keyboard 1 Movement Vi Keybinds 1 Fullscreen 1 Font 32/SmallcapsGlow Map View 50x35 Zoom Use 0% Tactical HUD 1 Map Filters NONE Filters NONE Steam 1 RUN: 257eb723-dc26-4473-ac1b-d6bb50149aeb